Cogmind - Beta 16.1 @@@ ROGUE MODE // 2026.04.12 @ 20:17:31 Player: Tibo Result: Destroyed by G-47 Trooper with Particle Gun Performance ------------- Evolutions (1) 500 Regions Visited (2) 400 Robots Destroyed (21) 105 Value Destroyed (316) 316 Prototype IDs (1) 20 Alien Tech Used (0) 0 Bonus (0) 0 TOTAL SCORE: 1341 Bonus ------- None Cogmind --------- Core Integrity 0/400 Matter 295/300 Energy 98/100 System Corruption 0% Temperature Cool (16) Movement Walking (120) Location -9/Materials Parts ------- > --- POWER (1) -------- (None) > --- PROPULSION (3) --- Aluminum Leg > --- UTILITY (3) ------ Small Storage Unit > --- WEAPON (2) ------- Maul > --- INVENTORY (8) ---- Light Ion Engine Light Ion Engine Improved EM Shotgun Small Laser Mining Laser Peak State ------------ > --- POWER ------------ Light Ion Engine > --- PROPULSION ------- Light Treads Aluminum Leg Aluminum Leg > --- UTILITY ---------- Small Storage Unit Improved Terrain Scanner Seismic Detector > --- WEAPON ----------- Improved EM Shotgun Particle Gun > --- INVENTORY -------- Light Ion Engine Light Ion Engine Light Treads Small Laser Grenade Launcher Mining Laser Maul [Rating: 14] Favorites ----------- Power Light Ion Engine Engine Light Ion Engine Propulsion Aluminum Leg Treads Light Treads Leg Aluminum Leg Utility Small Storage Unit Device Seismic Detector Storage Small Storage Unit Weapon Medium Laser Energy Gun Medium Laser Ballistic Gun Assault Rifle Launcher Grenade Launcher Impact Weapon Maul Build | -11 -10 -9 ------- Run | Yrd Mat Mat Slots Evolved 2 | . . 2 Power . | . . . Propulsion 1 | . . 1 Utility 1 | . . 1 Weapon . | . . . Parts Attached 16 | 7 2 7 Power 1 | 1 . . Engine 1 | 1 . . Core . | . . . Reactor . | . . . Propulsion 5 | 2 . 3 Treads 2 | . . 2 Leg 3 | 2 . 1 Wheel . | . . . Hover . | . . . Flight . | . . . Utility 3 | 1 1 1 Device 2 | . 1 1 Storage 1 | 1 . . Processor . | . . . Hackware . | . . . Protection . | . . . Artifact . | . . . Weapon 7 | 3 1 3 Energy Gun 4 | 2 . 2 Energy Cannon . | . . . Ballistic Gun 1 | 1 . . Ballistic Cannon . | . . . Launcher 1 | . 1 . Special Weapon . | . . . Impact Weapon 1 | . . 1 Slashing Weapon . | . . . Piercing Weapon . | . . . Special Melee Weapon . | . . . Unidentified Prototypes 1 | . . 1 Parts Lost 9 | . . 9 Power 1 | . . 1 Propulsion 4 | . . 4 Utility 2 | . . 2 Weapon 2 | . . 2 Highest Loss Streak 6 | . . 6 To Critical Strikes . | . . . Average Backups 6 | 4 7 6 Power 1 | 1 2 2 Propulsion 1 | 1 2 1 Utility . | . 1 . Weapon 2 | 1 2 3 Tool/Special . | . . . Unused Backups 4 | 1 . 3 Power 2 | . . 2 Propulsion . | . . . Utility . | . . . Weapon 2 | 1 . 1 Tool/Special . | . . . Average Slot Usage (%) 86 | . 98 75 Engine 9 | . 14 5 Treads 5 | . . 9 Leg 21 | . 28 15 Device 15 | . 12 18 Storage 12 | . 14 11 Energy Gun 11 | . 14 10 Launcher 8 | . 12 4 Peak Build Rating 14 | 7 7 14 Average Rating 7 | 5 7 10 On Entrance 4 | . 7 7 Avg Prop Armor Cover (%) 12 | . . 12 Naked Turns . | . . . Heaviest Build 16 | 12 14 16 Greatest Support 20 | 20 20 20 Greatest Overweight (x) 2 | . . 2 Average Overweight (x) . | . . . Largest Inventory Capacity 8 | 8 8 8 Average Capacity 7 | 7 8 8 Most Carried 8 | 8 8 7 Average Carried 6 | 4 7 6 Final Capacity 8 | 8 8 8 Final Carried 8 | 8 7 5 Class Distribution -------------------- 100% | Mutant Dominant Class ---------------- Mutant | -10/Materials Mutant | -9/Materials Resources | -11 -10 -9 ----------- Run | Yrd Mat Mat Matter Collected 423 | 318 20 85 Remotely . | . . . Salvage Created 488 | 201 150 137 Parts 40 | 17 13 10 Haulers Intercepted 1 | . 1 . Recyclers Shooed . | . . . Parts Field Recycled . | . . . Retrieved Matter . | . . . Parts Self-Destructed . | . . . Prevented . | . . . Parts Restored . | . . . Kills | -11 -10 -9 ------- Run | Yrd Mat Mat Combat Hostiles Destroyed 10 | . 3 7 Melee 1 | . . 1 Guns 2 | . 1 1 AOE 5 | . 2 3 Classes Destroyed 8 | 3 3 2 Worker 3 | 2 . 1 Builder 1 | . 1 . Tunneler 5 | 5 . . Hauler 1 | . 1 . Recycler 1 | 1 . . Swarmer 4 | . . 4 Grunt 5 | . 3 2 Sentry 1 | . . 1 Best Kill Streak 5 | 3 4 5 Combat Bots Only 4 | . 2 4 Max Kills in Single Turn 2 | 1 2 2 Gunslinging . | . . . Exploded 2 | . 1 2 Melee 1 | . . 1 Uniques/NPCs Destroyed . | . . . Combat | -11 -10 -9 -------- Run | Yrd Mat Mat Hostile Shots Fired 152 | . 7 145 Missed 44 | . 2 42 Hits 108 | . 5 103 Projectile 108 | . 5 103 Critical Strikes 3 | . . 3 Damage Taken 1341 | . 64 1277 Core 418 | . 10 408 Absorbed by Shields . | . . . Core Remaining (%) 98 | 100 96 . Volleys Fired 26 | 16 7 3 Largest 2 | 2 2 2 Hottest 95 | 70 80 95 Shots Fired 47 | 32 10 5 Gun 42 | 32 7 3 Cannon . | . . . Launcher 5 | . 3 2 Special . | . . . Kinetic 16 | 16 . . Thermal 26 | 16 7 3 Explosive 5 | . 3 2 Electromagnetic . | . . . Robot Hit Streak 5 | 5 4 5 Robot Miss Streak 3 | 3 2 . Penetration Max . | . . . Secondary Targets . | . . . Shots Hit Robots 30 | 15 6 9 Core Hits 22 | 9 7 6 Critical Kills . | . . . Critical Parts Destroyed 1 | . . 1 Critical Strikes 4 | 1 1 2 Burn 3 | 1 1 1 Smash 1 | . . 1 Melee Attacks 5 | . . 5 Impact 5 | . . 5 Slashing . | . . . Piercing . | . . . Sneak Attacks . | . . . Combat Hostiles . | . . . Follow-up Attacks . | . . . Damage Inflicted 991 | 187 242 562 Guns 270 | 187 51 32 Cannons . | . . . Explosions 501 | . 191 310 Melee 214 | . . 214 Ramming 6 | . . 6 Kinetic 59 | 59 . . Thermal 211 | 128 51 32 Explosive 501 | . 191 310 Electromagnetic . | . . . Impact 214 | . . 214 Slashing . | . . . Piercing . | . . . Highest Corruption . | . . . Average Corruption . | . . . Corruption Purged . | . . . Corruption Blocked . | . . . Overload Shots . | . . . Overflow Damage 82 | . . 82 Projectiles . | . . . Explosions 23 | . . 23 Melee 59 | . . 59 Knockbacks 1 | . . 1 Impact 1 | . . 1 Kinetic . | . . . Secondary . | . . . Self-Inflicted Damage 64 | . 7 57 Shots 3 | . 1 2 Rammed . | . . . Targets Rammed 2 | . . 2 Kicked 2 | . . 2 Crushed . | . . . Highest Temperature 72 | 36 72 62 Average Temperature 20 | 12 32 29 Received Heat Transfer 603 | . 30 573 Siege Activations . | . . . Martial Activations . | . . . Shielding Activations . | . . . Robots Disrupted . | . . . Combat Hostiles . | . . . Robots Corrupted 2 | . . 2 Combat Hostiles 2 | . . 2 Parts Fried 2 | . . 2 Impact Corruptions 3 | . . 3 Robots Melted . | . . . Combat Hostiles . | . . . Parts Melted 1 | . 1 . Heat Transferred 814 | 444 222 148 Parts Sabotaged . | . . . Parts Stolen . | . . . Parts Stripped . | . . . Power Chain Reactions . | . . . Alert | -11 -10 -9 ------- Run | Yrd Mat Mat Maximum Alert Level . | . . . Low Security (%) 100 | 100 100 100 Level 1 . | . . . Level 2 . | . . . Level 3 . | . . . Level 4 . | . . . Level 5 . | . . . High Security . | . . . Max Security . | . . . Peak Influence 172 | 10 89 172 Initial 33 | . . 33 Average 23 | 1 9 53 Influence Increases 498 | 40 109 349 Destroy 0b10 Robot/C 200 | . 60 140 Destroy 0b10 Robot/NC 55 | 40 10 5 Destroy Leader 42 | . 12 30 Successful Hack 2 | . . 2 Disable Machine 15 | . 15 . Destroy Structure 19 | . 12 7 Partial Spotted 15 | . . 15 Lose Combat Pursuer 150 | . . 150 Influence Decreases 336 | 40 30 266 Entered New Map 46 | . . 46 Time Decay 200 | 40 30 130 Lost Part 90 | . . 90 Squads Dispatched 3 | . 1 2 Investigation 3 | . 1 2 Extermination . | . . . Reinforcement . | . . . Assault . | . . . Garrison . | . . . Intercept . | . . . Searches Triggered . | . . . Construction Impeded . | . . . Haulers Reinforced . | . . . Active Scanning Responses . | . . . Cargo Convoy Interrupts . | . . . Stealth | -11 -10 -9 --------- Run | Yrd Mat Mat Distress Signals . | . . . Communications Jammed . | . . . Distress Signals . | . . . Times Spotted 27 | . 6 21 Peak Tracking Total 11 | . 6 11 Tactical Retreats 5 | . . 5 Traps | -11 -10 -9 ------- Run | Yrd Mat Mat Traps Triggered 1 | . . 1 Indirectly . | . . . Trap Hack Attempts . | . . . Triggered . | . . . Disarmed . | . . . Reprogrammed . | . . . Reused . | . . . Traps Extracted . | . . . Installed . | . . . Triggered . | . . . Machines | -11 -10 -9 ---------- Run | Yrd Mat Mat Machines Disabled 1 | . 1 . Max in Single Turn 1 | . 1 . Machines Repaired . | . . . Machines Dismantled . | . . . Machines Sabotaged . | . . . Overloaded Fab Kills . | . . . Hacking | -11 -10 -9 --------- Run | Yrd Mat Mat Machines Accessed 3 | . 2 1 Terminals 2 | . 2 . Fabricators . | . . . Repair Stations . | . . . Recycling Units . | . . . Scanalyzers 1 | . . 1 Garrison Access . | . . . Total Hacks 9 | . 4 5 Successful 5 | . 1 4 Failed 4 | . 3 1 Catastrophic 2 | . 2 . Database Lockouts . | . . . Manual . | . . . Terminals 4 | . 4 . Fabricators . | . . . Repair Stations . | . . . Recycling Units . | . . . Scanalyzers 5 | . . 5 Garrison Access . | . . . Terminal Hacks 1 | . 1 . Record 1 | . 1 . Fabricator Hacks . | . . . Repair Station Hacks . | . . . Recycling Unit Hacks . | . . . Scanalyzer 4 | . . 4 Insert Component 1 | . . 1 Analyze 1 | . . 1 Retrieve Study 2 | . . 2 Garrison Access Hacks . | . . . Unauthorized Hacks . | . . . Terminals . | . . . Fabricators . | . . . Repair Stations . | . . . Recycling Units . | . . . Scanalyzers . | . . . Garrison Access . | . . . Data Cores Recovered . | . . . Used . | . . . Hacking Detections 3 | . 2 1 Full Trace Events 2 | . 1 1 Feedback Events . | . . . Feedback Blocked . | . . . Robot Schematics Acquired . | . . . Robots Built . | . . . Authchips . | . . . Time . | . . . Total Robot Build Rating . | . . . Part Schematics Acquired 1 | . . 1 Parts Built . | . . . Authchips . | . . . Time . | . . . Total Part Build Rating . | . . . Part Studies Acquired 2 | . . 2 Parts Repaired . | . . . Time . | . . . Parts Recycled . | . . . Recycled Matter . | . . . Retrieved Matter . | . . . Retrieved Components . | . . . Parts Scanalyzed 1 | . . 1 Part Schematics Acquired 1 | . . 1 Parts Damaged . | . . . Bothacking | -11 -10 -9 ------------ Run | Yrd Mat Mat Used RIF Installer . | . . . Robots Hacked . | . . . Non-combat . | . . . Combat . | . . . Robot Hacks Applied . | . . . Relay Couplers Released . | . . . Fabnet Peak Effective % . | . . . Robots Rewired . | . . . Allies Hacked . | . . . Hacks Repelled . | . . . Allies | -11 -10 -9 -------- Run | Yrd Mat Mat Total Allies . | . . . Largest Group . | . . . Highest-Rated Group . | . . . Highest-Rated Ally . | . . . Total Orders . | . . . Ally Attacks . | . . . Total Damage . | . . . Kills . | . . . Allies Corrupted . | . . . Allies Melted . | . . . Intel | -11 -10 -9 ------- Run | Yrd Mat Mat Active Infowar (turns) 494 | . 228 266 Terrain 242 | . . 242 Seismic 490 | . 228 262 Robot Analysis Total . | . . . Derelict Logs Recovered . | . . . Drone Launches . | . . . Drone Recoveries . | . . . Exploration | -11 -10 -9 ------------- Run | Yrd Mat Mat Turns Passed 789 | 242 253 294 Spaces Moved 549 | 151 185 213 Core 12 | 8 . 4 Treads 3 | . . 3 Legs 534 | 143 185 206 Wheels . | . . . Hover . | . . . Flight . | . . . Fastest Speed 50 | 50 120 100 Average Speed 119 | 116 120 120 Slowest Speed 160 | 120 120 160 Overloaded Moves . | . . . Propulsion Burnouts . | . . . Robots Hopped . | . . . Potential Cave-ins . | . . . Cave-ins Triggered . | . . . Exploration Rate (%) 22 | 6 38 22 Regions Visited 2 Branch Regions . Pre-discovered Areas . | . . . Known Exits Taken . | . . . Unknown Exits Taken 2 | 1 1 . Scrap Searched . | . . . Spaces Dug . | . . . Terrain Destroyed 20 | . 14 6 Melee . | . . . Projectile . | . . . AOE 20 | . 14 6 Terrain Rammed . | . . . Walls Destroyed . | . . . Machines Disabled . | . . . Actions | -11 -10 -9 --------- Run | Yrd Mat Mat Total 621 | 183 205 233 Wait 12 | . 12 . Move 547 | 150 184 213 Hop . | . . . Pick Up 11 | 9 . 2 Fast Attach 7 | 6 . 1 Attach 5 | . 1 4 Detach . | . . . Swap 5 | 1 1 3 Drop 1 | 1 . . Fire 26 | 16 7 3 Melee 5 | . . 5 Ram . | . . . Kick 2 | . . 2 Crush . | . . . Escape Stasis . | . . . Rewire . | . . . Trap . | . . . Miscellaneous . | . . . Route ------- -11/Scrapyard -10/Materials -9/Materials History --------- Turn | Location | Event 5 | -11/Scrapyard | Discovered new exit (range 13) 243 | -11/Scrapyard | Entered Materials 308 | -10/Materials | Build established: Mutant 478 | -10/Materials | Discovered new exit (range 13) 496 | -10/Materials | Entered another Materials area 496 | -9/Materials | Evolved 2 slots: Propulsion x1, Utility x1 676 | -9/Materials | Lost 3 parts (1p1n1w) 766 | -9/Materials | Core integrity fell below 50% 775 | -9/Materials | Core integrity fell below 20% 790 | -9/Materials | Destroyed by G-47 Trooper with Particle Gun Last Messages --------------- 00756_ Critical hit (Burn: +37). 00758_ Seismic Detector destroyed. 00760_ Aluminum Leg destroyed. 00762_ Imp. Terrain Scanner destroyed. 00768_ Destroyed Heat Sink. 00768_ Y-45 Defender system corrupted by crushing effect. 00769_ Y-45 Defender system terminally corrupted. 00769_ Lgt. Armor Plating fried. 00771_ Acquired 15 matter. 00772_ G-34 Mercenary suffers critical hit (Burn). 00772_ G-34 Mercenary destroyed. 00784_ Acquired Aluminum Leg. 00787_ G-34 Mercenary suffers critical hit (Smash). 00787_ Destroyed Sml. Laser. 00787_ Destroyed Heat Sink. 00787_ G-34 Mercenary system corrupted by crushing effect. 00787_ G-34 Mercenary knocked back. 00788_ G-34 Mercenary system terminally corrupted. 00788_ Aluminum Leg fried. 00788_ Lgt. Treads destroyed. Map ----- +----------------------------------------------------+ | ????????????????????????????????????????? | | ????????????????????????????????????????? | | ????????????????????????????????????????? | | ????????????????????????????????????????? | | ?????????????????????????????????? ?????? | | ?????????????????????????????????? ?????? | | ?????????????????????????????????? ?????? | | ???????????? ????????????????????? ?????? | | ?????????????????????????????????? ?????? | | ?????????????????????#???????????? ?????? | | ?????????????????????????????????? ?????? | | ????????????????????#????????????# #?#??? | | ?????????????????#???????????????# #????? | | ????????????????????##???#????#??# #????? | | ?????????????????????????????????# #????? | | #????????????????????????????#???# #???#? | | ??????????????????????????######## #???## | | ??????????#???????????????# # ##??# | | ??????????????????????????# # ##### | | ?????????????????########## + | | ?????????????????# % # # ###### | | ????????????###### # # #??? | | ??? ???###### =%# """ # + #? """ | | ???????# g%[#= """ ######## ## """ | | ???????# [%!g% """ ######## ## """ | | ???????###### %[@#= """ / + | | ????????????###### """ ########### | | ?????????????????# #?????????? | | ??????#??????????# #?????##????? | | ???????????????#?##########????????????## | | | | | | | | | | | | | | | | | | | | | | | | | | | | | | | | | | | | | | | | | +----------------------------------------------------+ Best States ------------- Heat Dissipation 28 Energy Generation 11 Energy Capacity 125 Matter Stores 300 Matter Capacity 300 Sight Range 16 Terrain Scan Range 16 Terrain Scan Density 10 Evasion (%) 55 Recoil Reduction 1 Item Schematics ----------------- Lgt. Ion Engine | -9/Materials | Scanalyzed Robot Schematics ------------------ None Fabricated ------------ Nothing Repaired ---------- Nothing Studied --------- Lgt. Ion Engine | -9/Materials | Hacked Maul | -9/Materials | Hacked Alien Tech Used ----------------- None Achievements -------------- None Challenges ------------ None Game ------ Seed AlphaConceptRocket Manual? 0 Play Time 00:10:09 Cumulative 24.4 hours Start 2026.04.12 @ 20:10:19 End 2026.04.12 @ 20:17:31 Sessions 1 Manual Loads 0 Difficulty Rogue Special Mode None Game No. 34 Rogue 34 Adventurer 0 Explorer 0 Win Type - Total 0 Types 0/0/0/0/0/0/0/0/0/0 Lore% 14 Gallery% 24 Achievement% 15 Wizard Run 0 Options --------- Layout 1 ASCII 0 Keyboard 1 Movement Numpad Keybinds 0 Fullscreen 0 Font 28/SmallcapsGlow Map View 90x40 Zoom Use 0% Tactical HUD 1 Map Filters NONE Filters NONE Steam 1 RUN: caecc7d8-ac7c-4a2c-a77f-493fcdaf6b7d